[Event "37th ECCC 2022"]
[Site "Mayrhofen"]
[Date "2022.10.04"]
[Round "2.44"]
[White "Santos Latasa, Jaime"]
[Black "Doric, Darko"]
[Result "1/2-1/2"]
[ECO "B40"]
[WhiteElo "2677"]
[BlackElo "2457"]
[Annotator "TA"]
[PlyCount "117"]
[EventDate "2022.10.03"]
[EventType "team-tourn"]
[EventCountry "AUT"]
[SourceTitle "playchess.com"]
[Source "ChessBase"]
[SourceQuality "1"]
[TimeControl "40/5400+30:1800+30"]

{[%evp 12,117,16,14,26,18,18,16,27,-8,24,41,52,47,70,66,68,57,56,48,76,56,87,89,159,151,189,129,127,133,120,109,129,136,165,146,139,16,11,0,47,45,61,59,63,57,66,66,64,65,130,122,134,135,131,135,137,144,141,150,151,148,151,151,188,97,110,103,111,104,97,96,95,98,116,97,99,87,87,93,105,86,95,8,8,8,8,8,8,8,24,8,8,8,8,0,0,0,8,0,8,0,0,0,3,0,0,0]} 1. e4 {[%emt 0:00:03]} c5 {[%emt 0:00:09]} 2. Nf3 {[%emt 0:00:03]} e6 {[%emt 0:00:10]} 3. b3 {[%emt 0:00:28]} b6 {[%emt 0:03:22]} 4. Bb2 {[%emt 0:00:25]} Bb7 {[%emt 0:00:06]} 5. Nc3 {[%emt 0:00:06]} Nc6 {[%emt 0:02:03]} 6. d4 {[%emt 0:01:00]} cxd4 {[%emt 0:01:09]} 7. Nxd4 {[%emt 0:01:00]} a6 {[%emt 0:07:26] Against Ndb5. B40: Sicilian: 2...e6, Unusual lines.} 8. Nxc6 {[%emt 0:01:19]} Bxc6 {[%emt 0:00:27]} 9. Bd3 {[%emt 0:00:06] [#]} Qg5 $146 {[%emt 0:10:56]} ({Predecessor:} 9... d6 10. Qe2 b5 11. a4 b4 12. Nd5 a5 13. Bb5 Ne7 14. Nxe7 Bxb5 15. Qxb5+ Kxe7 {1-0 (25) Tsydypov,Z (2553)-Papin,V (2481) Sochi 2019}) 10. g3 {[%emt 0:10:17]} Bc5 {[%emt 0:07:05]} 11. f4 {[%emt 0:01:55]} Qh6 {[%emt 0:00:54]} 12. Qe2 {[%emt 0:01:36]} b5 {[%emt 0:09:01]} 13. O-O-O {[%emt 0:05:21][%cal Oc3d5]} Ne7 {[%emt 0:00:43]} 14. h4 {[%emt 0:04:17]} O-O {[%emt 0:03:05]} 15. a3 {[%emt 0:05:05]} Rad8 {[%emt 0:18:31]} 16. Kb1 {[%emt 0:01:22]} d5 {[%emt 0:06:54]} 17. e5 {[%emt 0:08:46]} d4 {[%emt 0:03:27]} (17... Nf5 $142) 18. Ne4 $16 {[%emt 0:00:18]} Ba7 {[%emt 0:01:24]} 19. Nf2 {[%emt 0:01:08]} ({Better is} 19. Rh2 $18) 19... Nd5 {[%emt 0:04:05][%cal Be7d5,Bd5e3,Be3f1][%mdl 32]} (19... Bxh1 $2 20. Ng4 Bd5 21. Nxh6+ gxh6 22. Qh5 $18) 20. Be4 {[%emt 0:02:14] [#] Ng4 is the strong threat.} f5 {[%emt 0:01:51] Inhibits Ng4.} 21. exf6 $1 {[%emt 0:04:13]} Qxf6 {[%emt 0:01:30]} 22. Rhe1 {[%emt 0:00:35]} (22. Qh5 h6) 22... Ba8 {[%emt 0:03:05]} 23. Rd3 {[%emt 0:06:51]} Qe7 {[%emt 0:03:20]} 24. Red1 {[%emt 0:01:04]} (24. Qh5 Nf6 25. Qe2 Nxe4 26. Nxe4 h6 $14) ({White should try} 24. Ng4 $16) 24... Ne3 $11 {[%emt 0:01:33]} 25. R1d2 {[%emt 0:00:49] Threatens to win with Bxa8.} Bxe4 {[%emt 0:02:20]} (25... Nc4 $1 $11) 26. Nxe4 $14 {[%emt 0:00:12]} e5 {[%emt 0:05:08]} 27. fxe5 {[%emt 0:01:12][%cal Rb2d4]} ({Wrong is} 27. Qh5 $2 exf4 28. Ng5 h6 29. gxf4 Rf5 30. Bxd4 Rxd4 31. Rxd4 Bxd4 32. Rxd4 hxg5 33. hxg5 Nd5 $19) 27... Nf1 {[%emt 0:00:10]} (27... Rf1+ $2 28. Ka2 Rff8 29. Bxd4 Bxd4 30. Rxd4 Nxc2 31. Rd6 Qxe5 32. Nf6+ (32. Rxc2 Rxd6 33. Nxd6 Qxd6 $11) 32... gxf6 33. Qxe5 fxe5 34. Rxd8 $18) 28. Rd1 $36 {[%emt 0:00:28][%mdl 2048] Black is under pressure.} Qxe5 {[%emt 0:00:02][%cal Oa7b6]} 29. Rf3 {[%emt 0:01:03]} Rxf3 {[%emt 0:00:21]} 30. Qxf3 {[%emt 0:00:05]} Rf8 {[%emt 0:01:16]} (30... Nh2 $1 $14 31. Qe2 Rf8) 31. Qd3 $16 {[%emt 0:00:09]} Ne3 {[%emt 0:02:22]} 32. Bxd4 {[%emt 0:06:38]} ({Resist} 32. Qxe3 $6 dxe3 33. Bxe5 Re8 $11) 32... Bxd4 {[%emt 0:00:11]} 33. Qxd4 {[%emt 0:00:05]} Qxd4 {[%emt 0:00:19]} 34. Rxd4 {[%emt 0:00:05][%mdl 4096] Endgame KRN-KRN} Rf1+ {[%emt 0:00:04]} 35. Kb2 {[%emt 0:00:23]} Nd1+ {[%emt 0:00:26]} 36. Ka2 {[%emt 0:00:17]} h6 {[%emt 0:01:21]} 37. a4 {[%emt 0:02:25]} Re1 {[%emt 0:01:55][%cal Oe1e4] [#]} 38. axb5 {[%emt 0:00:56]} ({White should play} 38. Nc5 $1 $18) 38... axb5 {[%emt 0:00:08][%cal Ob5b4]} 39. Nd6 {[%emt 0:06:00]} Ne3 {[%emt 0:01:06]} 40. Nxb5 {[%emt 0:00:39]} Nxc2 {[%emt 0:00:11]} 41. Rd2 {[%emt 0:30:43]} Nb4+ {[%emt 0:04:01]} 42. Ka3 {[%emt 0:00:00]} Nc6 {[%emt 0:00:35]} 43. Nd4 {[%emt 0:00:00]} Ne5 {[%emt 0:04:01]} 44. Re2 {[%emt 0:00:00]} Rxe2 {[%emt 0:00:05]} 45. Nxe2 {[%emt 0:00:00] Strongly threatening Kb4. KN-KN} Kf7 {[%emt 0:00:16]} 46. Kb4 {[%emt 0:00:00]} Ke6 {[%emt 0:00:38]} 47. Nd4+ {[%emt 0:00:00]} (47. Kc5 $16) 47... Kd5 $11 {[%emt 0:03:54]} 48. Nf5 {[%emt 0:00:00]} Ke4 {[%emt 0:01:20]} 49. Nxg7 {[%emt 0:00:00] And now h5 would win.} Kf3 $1 {[%emt 0:00:07]} 50. Kc3 {[%emt 0:00:00] aiming for Kd4.} Kxg3 {[%emt 0:00:13]} 51. h5 {[%emt 0:00:00]} Nc6 {[%emt 0:04:40] The position is equal.} 52. Kd3 {[%emt 0:00:00]} Kf4 {[%emt 0:01:20]} 53. Ne6+ {[%emt 0:00:00]} Kg4 {[%emt 0:00:05]} 54. Nd4 {[%emt 0:00:00]} Nb4+ {[%emt 0:04:27]} 55. Kc3 {[%emt 0:00:00]} Na2+ {[%emt 0:00:37]} 56. Kb2 {[%emt 0:00:00]} Nb4 {[%emt 0:00:10]} 57. Kc3 {[%emt 0:00:00]} Na2+ {[%emt 0:00:06]} 58. Kb2 {[%emt 0:00:00]} Nb4 {[%emt 0:00:05]} 59. Kc3 {[%emt 0:00:00] Black defended with fortune.  Weighted Error Value: White=0.15 (very precise) /Black=0.11 (very precise)} 1/2-1/2

[Event "37th ECCC 2022"]
[Site "Mayrhofen"]
[Date "2022.10.04"]
[Round "2.45"]
[White "Tica, Sven"]
[Black "Idani, Pouya"]
[Result "0-1"]
[ECO "A62"]
[WhiteElo "2422"]
[BlackElo "2623"]
[Annotator "TA"]
[PlyCount "96"]
[EventDate "2022.10.03"]
[EventType "team-tourn"]
[EventCountry "AUT"]
[SourceTitle "playchess.com"]
[Source "ChessBase"]
[SourceQuality "1"]
[TimeControl "40/5400+30:1800+30"]

{[%evp 18,96,25,16,26,28,29,14,38,29,39,29,28,31,42,33,53,53,71,30,49,55,39,27,40,31,29,30,46,56,68,0,31,0,66,61,60,0,0,0,0,-159,0,0,0,0,0,-108,-104,-141,-141,-132,-122,-129,-127,-141,-131,-121,-138,-500,-468,-605,-599,-593,-583,-540,-504,-672,-627,-1545,-1534,-1446,-1401,-29979,-29980,-29979,-29980,-29980,-29981,-29987,-29984]} 1. d4 {[%emt 0:00:04]} Nf6 {[%emt 0:00:05]} 2. c4 {[%emt 0:00:06]} c5 {[%emt 0:00:03]} 3. d5 {[%emt 0:00:06]} e6 {[%emt 0:00:04]} 4. Nc3 {[%emt 0:00:07]} exd5 {[%emt 0:00:03]} 5. cxd5 {[%emt 0:00:07]} d6 {[%emt 0:00:03]} 6. Nf3 {[%emt 0:00:08]} g6 {[%emt 0:00:04]} 7. g3 {[%emt 0:00:06]} Bg7 {[%emt 0:00:03]} 8. Bg2 {[%emt 0:00:06]} O-O {[%emt 0:00:05]} 9. O-O {[%emt 0:00:05]} Re8 {[%emt 0:00:02]} 10. Bf4 {[%emt 0:00:09]} h6 {[%emt 0:00:05] Recently 10...Bf5 got a lot of attention. A62: Modern Benoni: Fianchetto Variation without early ...Nbd7.} 11. Qc1 {[%emt 0:00:06]} g5 {[%emt 0:00:05]} 12. Be3 {[%emt 0:00:28]} Bf5 {[%emt 0:00:27] The position is equal.} 13. h4 {[%emt 0:00:08]} g4 {[%emt 0:00:06]} 14. Nd2 {[%emt 0:00:04]} Rxe3 {[%emt 0:00:08]} 15. fxe3 {[%emt 0:00:05]} Bg6 {[%emt 0:00:28]} 16. Nc4 {[%emt 0:00:06]} Qe7 {[%emt 0:01:24]} 17. Nb5 {[%emt 0:00:08]} Ne8 {[%emt 0:01:20]} 18. a4 {[%emt 0:00:06][%cal Oe3e4]} (18. e4 $5 {[%cal Re4e5]}) 18... Nd7 {[%emt 0:02:14]} 19. e4 {[%emt 0:03:43]} a6 {[%emt 0:10:03]} 20. Nc3 {[%emt 0:01:07]} Nef6 $1 {[%emt 0:04:26]} 21. a5 {[%emt 0:30:17]} Nh5 {[%emt 0:05:56]} 22. Qe1 {[%emt 0:01:27]} Rb8 {[%emt 0:13:36]} 23. Ra3 {[%emt 0:19:56] [#]} Ne5 $146 {[%emt 0:06:13]} ({Predecessor:} 23... Bd4+ 24. e3 Bg7 25. Nb1 Bxe4 26. Nbd2 Bg6 27. e4 Bd4+ 28. Kh2 Ne5 29. Qd1 Nf6 {½-½ (43) Filin,E (2357)-Maur,R (2293) LSS email 2019}) 24. Nb6 {[%emt 0:07:07]} (24. Ne3 $1 $14) 24... Nf6 {[%emt 0:04:32]} (24... Nd7 $5 {[%cal Rd7b6]}) 25. Rf4 {[%emt 0:06:58]} Nfd7 {[%emt 0:05:07]} ({Better is} 25... Nh5 $11) 26. Nca4 $1 $14 {[%emt 0:03:17]} h5 {[%emt 0:03:38]} 27. Rb3 {[%emt 0:06:43]} (27. Rf1 $14) 27... Bh6 $11 {[%emt 0:02:39]} 28. Qc3 {[%emt 0:03:25]} Nf6 {[%emt 0:04:54]} 29. Qc2 $2 {[%emt 0:08:16]} (29. Rxf6 $11 Qxf6 30. Nc4) 29... Ned7 $2 {[%emt 0:08:13]} (29... Bxf4 $17 30. gxf4 Nxe4 $1 31. fxe5 (31. Bxe4 $2 Qxh4 32. Kf1 g3 $19) 31... Qxh4) 30. Nxd7 {[%emt 0:01:24]} Nxd7 {[%emt 0:00:06][%cal Bf6d7,Bd7e5,Be5c4][%mdl 32]} 31. e3 {[%emt 0:03:18]} Ne5 {[%emt 0:05:00]} 32. Nc3 {[%emt 0:00:15]} (32. Rf1 $11 {remains equal.}) 32... Qc7 {[%emt 0:06:51]} 33. Rb6 {[%emt 0:02:55]} Nc4 {[%emt 0:01:11]} 34. Na4 {[%emt 0:01:03]} Nxb6 {[%emt 0:06:32]} 35. Nxb6 {[%emt 0:00:12]} Re8 {[%emt 0:01:11]} ({Worse is} 35... Bxf4 36. exf4 f6 37. b4) 36. Nc4 {[%emt 0:02:33]} Bxf4 {[%emt 0:00:45]} 37. exf4 {[%emt 0:00:25]} Qe7 {[%emt 0:05:55][%cal Rg6e4]} 38. f5 $2 {[%emt 0:00:35][%mdl 8192] [#] Now White is beyond hope.} (38. Qa4 $17 {nothing else works.}) 38... Bxf5 $1 $19 {[%emt 0:00:04][%mdl 512]} 39. exf5 {[%emt 0:00:32] aiming for Qd2.} (39. Qa4 Bg6) 39... Qe1+ {[%emt 0:00:05]} 40. Bf1 {[%emt 0:00:54] Strongly threatening Qf2.} Qxg3+ {[%emt 0:00:05]} 41. Qg2 {[%emt 0:30:36]} Qxh4 {[%emt 0:31:32]} 42. Nxd6 {[%emt 0:00:00]} Re3 {[%emt 0:00:00]} 43. Qf2 {[%emt 0:00:00] [#]} g3 $1 {[%emt 0:00:00]} 44. Qd2 {[%emt 0:00:00]} Rf3 {[%emt 0:00:00]} 45. Ne4 {[%emt 0:00:00]} Rxf1+ {[%emt 0:00:00] Black mates.} 46. Kxf1 {[%emt 0:00:00]} Qh1+ {[%emt 0:00:00]} 47. Ke2 {[%emt 0:00:00]} Qxe4+ {[%emt 0:00:00]} 48. Kd1 {[%emt 0:00:00]} Qd4 {[%emt 0:00:00] Weighted Error Value: White=0.66/Black=0.13 (very precise)} 0-1

[Event "37th ECCC 2022"]
[Site "Mayrhofen"]
[Date "2022.10.04"]
[Round "2.46"]
[White "Alonso Rosell, Alvar"]
[Black "Lehner, Oliver"]
[Result "1-0"]
[ECO "E10"]
[WhiteElo "2563"]
[BlackElo "2398"]
[Annotator "TA"]
[PlyCount "57"]
[EventDate "2022.10.03"]
[EventType "team-tourn"]
[EventCountry "AUT"]
[SourceTitle "playchess.com"]
[Source "ChessBase"]
[SourceQuality "1"]
[TimeControl "40/5400+30:1800+30"]

{[%evp 10,57,0,3,39,13,16,12,24,18,21,16,25,33,17,19,24,4,18,0,15,17,25,20,59,-25,79,33,75,61,57,34,69,37,33,42,56,33,28,12,19,31,112,104,141,131,175,145,892,873]} 1. d4 {[%emt 0:00:03]} Nf6 {[%emt 0:00:07]} 2. c4 {[%emt 0:00:03]} e6 {[%emt 0:00:06]} 3. Nf3 {[%emt 0:00:06]} d5 {[%emt 0:00:07]} 4. g3 {[%emt 0:00:05]} Bb4+ {[%emt 0:01:03]} 5. Nc3 {[%emt 0:02:38]} dxc4 {[%emt 0:02:39]} 6. Bg2 {[%emt 0:00:28]} c6 {[%emt 0:06:37] E20: Nimzo-Indian: 4 g3 and 4 f3.} 7. Ne5 {[%emt 0:01:52][%mdl 1024] White has compensation.} (7. a3 $5 {[%cal Ra3b4]} Ba5 8. O-O $11) 7... Nd5 {[%emt 0:01:13]} 8. O-O {[%emt 0:00:59]} O-O {[%emt 0:10:57] The position is equal.} 9. Ne4 $5 {[%emt 0:00:50][%mdl 4] A promising side line.} (9. Nxc4 Bxc3 10. bxc3 Nxc3 $15) 9... b5 {[%emt 0:05:48] [#]} 10. b3 $146 {[%emt 0:00:35]} ({Predecessor:} 10. Qc2 f6 11. Nf3 Bb7 12. Neg5 fxg5 13. Nxg5 g6 14. Nxe6 Qe7 15. Nxf8 Qxf8 16. e4 {1-0 (34) Adomaitis,E (1889)-Setikiene,G (1862) Lithuania 2019}) 10... f6 {[%emt 0:04:13]} 11. bxc4 {[%emt 0:00:10]} fxe5 {[%emt 0:00:43]} 12. cxd5 {[%emt 0:01:26]} cxd5 {[%emt 0:02:09]} 13. dxe5 {[%emt 0:04:46] Threatening Bg5.} Nc6 $1 {[%emt 0:01:17]} (13... dxe4 $2 14. Bxe4 Nc6 15. Bxc6 $18) 14. Bg5 {[%emt 0:45:23]} Qd7 {[%emt 0:17:04]} 15. a3 {[%emt 0:11:47]} Ba5 {[%emt 0:02:41]} 16. Nc5 {[%emt 0:06:56][%cal Be4c5,Bc5b3,Bb3a5,Ba5c6][%mdl 32]} Qf7 {[%emt 0:00:14]} 17. Bf4 {[%emt 0:04:59]} (17. e4 $14 d4 18. Bd2) 17... Ne7 {[%emt 0:03:31]} (17... Bb6 $11 18. Nd3 Bb7) 18. Bd2 {[%emt 0:06:15]} (18. Rb1 $16) 18... Bb6 {[%emt 0:04:52]} 19. Rc1 {[%emt 0:00:05]} Rb8 {[%emt 0:14:12]} 20. Kh1 {[%emt 0:04:48]} a5 {[%emt 0:08:07]} 21. Nb3 {[%emt 0:01:34] White has more active pieces.} Qh5 {[%emt 0:01:53]} 22. Bxa5 {[%emt 0:04:19]} Bxa5 {[%emt 0:03:35]} 23. Nxa5 {[%emt 0:00:01]} Qxe5 {[%emt 0:00:13]} 24. Qc2 {[%emt 0:00:35]} Ra8 {[%emt 0:01:50]} 25. Qc5 {[%emt 0:00:20][%csl LRb5,LRe7]} Ng6 {[%emt 0:03:09]} (25... Qxe2 26. Qxe7 Rxa5 27. f4 $18 (27. Rc7 Qe5 $16)) ({Black should play} 25... Rxa5 $14 26. Qxe7 Qf6) 26. Nc6 {[%emt 0:01:39]} Qxe2 {[%emt 0:00:10] [#]} 27. f4 $1 {[%emt 0:00:29][%cal Bf2f4,Bf4f5,Bf5g6][%mdl 32] Hoping for f5!} Bd7 {[%emt 0:01:50] [#]} 28. f5 $1 {[%emt 0:00:17]} Rac8 $2 {[%emt 0:02:01][%mdl 8192]} (28... Rxf5 $2 29. Rxf5 exf5 30. Nd4 $18) (28... exf5 $2 29. Nd4 (29. Bxd5+ Kh8 $16) 29... Qe7 30. Bxd5+ Kh8 31. Qxe7 (31. Nxb5 Ra5 $15) 31... Nxe7 32. Bxa8 Rxa8 33. Rc7 $18) (28... Rfc8 $16 29. Ne7+ (29. fxg6 Bxc6 30. Qb6 hxg6 $16) 29... Nxe7 30. Qxe7 Be8) 29. fxg6 {[%emt 0:00:31] Weighted Error Value: White=0.13 (very precise) /Black=0.27 (precise)} 1-0

[Event "37th ECCC 2022"]
[Site "Mayrhofen"]
[Date "2022.10.04"]
[Round "2.47"]
[White "Deglmann, Ludwig"]
[Black "Forcen Esteban, Daniel"]
[Result "0-1"]
[ECO "D02"]
[WhiteElo "2243"]
[BlackElo "2566"]
[Annotator "TA"]
[PlyCount "46"]
[EventDate "2022.10.03"]
[EventType "team-tourn"]
[EventCountry "AUT"]
[SourceTitle "playchess.com"]
[Source "ChessBase"]
[SourceQuality "1"]
[TimeControl "40/5400+30:1800+30"]

{[%evp 16,46,0,-13,-8,-12,0,-1,2,-51,-30,-31,-37,-33,-30,-127,-134,-190,-166,-397,-420,-402,-428,-406,-424,-425,-409,-637,-615,-912,-870,-2301,-2149]} 1. d4 {[%emt 0:00:03]} Nf6 {[%emt 0:00:50]} 2. Nf3 {[%emt 0:00:17]} d5 {[%emt 0:04:58]} 3. Bf4 {[%emt 0:00:38]} c5 {[%emt 0:02:39]} 4. e3 {[%emt 0:04:43]} Nc6 {[%emt 0:00:06]} 5. c3 {[%emt 0:02:29]} Qb6 {[%emt 0:06:05]} 6. Qb3 {[%emt 0:10:09]} c4 {[%emt 0:01:46]} 7. Qc2 {[%emt 0:00:06]} Bf5 {[%emt 0:00:06]} 8. Qc1 {[%emt 0:00:04]} h6 {[%emt 0:04:21]} 9. h3 {[%emt 0:00:38][%cal Ob2b3]} e6 {[%emt 0:03:53] D02: 1 d4 d5 2 Nf3 sidelines, including 2...Nf6 3 g3 and 2...Nf6 3 Bf4.} 10. Nbd2 {[%emt 0:00:17]} Qd8 {[%emt 0:00:06]} 11. b3 {[%emt 0:06:54]} b5 {[%emt 0:03:13] [#] The position is equal.} 12. Ne5 $146 {[%emt 0:02:23]} (12. Be2 $11) ({Predecessor:} 12. a4 a6 13. Be2 Be7 14. O-O O-O 15. Qb2 Qd7 16. b4 Rfc8 17. Ra2 Nxb4 18. cxb4 {½-½ (34) Anisimov,P (2527)-Goganov,A (2589) St Petersburg 2021}) 12... Nxe5 $15 {[%emt 0:00:55]} 13. Bxe5 {[%emt 0:00:10]} Nd7 {[%emt 0:06:10]} 14. Bh2 {[%emt 0:01:30]} Rc8 {[%emt 0:01:21]} 15. a4 {[%emt 0:13:13]} (15. Be2 $11) 15... cxb3 $17 {[%emt 0:01:12] Black is more active.} 16. Bxb5 {[%emt 0:00:21]} (16. Nxb3 $17 {was necessary.} b4 17. c4 dxc4 18. Bxc4) 16... Bb4 $1 $19 {[%emt 0:03:57]} 17. c4 {[%emt 0:02:57]} (17. cxb4 Rxc1+ 18. Rxc1) 17... dxc4 {[%emt 0:01:15][%cal Bd5c4,Bc4c3,Bc3c2][%mdl 32]} 18. O-O {[%emt 0:01:12]} Bxd2 {[%emt 0:00:10]} 19. Qxd2 {[%emt 0:00:04]} c3 {[%emt 0:00:05]} 20. Qe2 {[%emt 0:00:50]} b2 {[%emt 0:00:06] [#] White must now prevent ...c2.} 21. Bd6 {[%emt 0:00:07]} (21. e4 $142 bxa1=R 22. Rxa1 Bxh3 23. Ba6) 21... c2 {[%emt 0:02:31] Black is clearly winning.} 22. e4 {[%emt 0:00:24]} bxa1=Q {[%emt 0:00:26]} 23. exf5 {[%emt 0:00:15] [#]} Qxf1+ $3 {[%emt 0:00:04] Black took control after the opening.  Weighted Error Value: White=1.21/Black=0.06 (flawless)} 0-1

[Event "37th ECCC 2022"]
[Site "Mayrhofen"]
[Date "2022.10.04"]
[Round "2.48"]
[White "Bernadskiy, Vitaliy"]
[Black "de Francesco, Klaus"]
[Result "1-0"]
[ECO "D35"]
[WhiteElo "2570"]
[BlackElo "2197"]
[Annotator "TA"]
[PlyCount "69"]
[EventDate "2022.10.03"]
[EventType "team-tourn"]
[EventCountry "AUT"]
[SourceTitle "playchess.com"]
[Source "ChessBase"]
[SourceQuality "1"]
[TimeControl "40/5400+30:1800+30"]

{[%evp 22,69,61,23,29,27,19,22,31,22,19,0,16,0,18,0,0,0,0,0,0,0,0,0,0,0,0,0,56,42,179,188,327,347,734,734,734,734,776,756,816,813,29984,29985,29985,29986,29984,29985,29985,29985]} 1. c4 {[%emt 0:00:03]} e6 {[%emt 0:00:31]} 2. Nc3 {[%emt 0:00:07]} d5 {[%emt 0:00:20]} 3. d4 {[%emt 0:00:05]} Nf6 {[%emt 0:00:11]} 4. cxd5 {[%emt 0:00:18]} exd5 {[%emt 0:00:16]} 5. Bg5 {[%emt 0:00:04]} Be7 {[%emt 0:00:17]} 6. e3 {[%emt 0:00:11]} c6 {[%emt 0:00:26]} 7. Bd3 {[%emt 0:01:14]} Nbd7 {[%emt 0:00:15]} 8. Nf3 {[%emt 0:01:58]} Nh5 {[%emt 0:01:38]} 9. Bxe7 {[%emt 0:06:13]} Qxe7 {[%emt 0:00:21]} 10. O-O {[%emt 0:00:19]} g6 {[%emt 0:03:27]} 11. Rb1 {[%emt 0:02:42]} a5 {[%emt 0:04:39]} 12. a3 {[%emt 0:02:11]} O-O {[%emt 0:00:33] D35: Queen's Gambit Declined: Exchange Variation.} 13. b4 {[%emt 0:00:23]} axb4 {[%emt 0:00:57]} 14. axb4 {[%emt 0:00:03]} Nb6 {[%emt 0:04:11] The position is equal.} 15. Qc2 {[%emt 0:04:21]} Ng7 {[%emt 0:03:49] [#]} 16. Rfe1 $146 {[%emt 0:05:07]} ({Predecessor:} 16. b5 c5 17. dxc5 Qxc5 18. Nd4 Ne6 19. Nce2 Qxc2 20. Bxc2 Nxd4 21. Nxd4 Bd7 22. h4 {1-0 (46) Georgiev,V (2554)-Chandra,A (2495) Saint Louis 2015}) 16... Bf5 {[%emt 0:04:59]} 17. e4 {[%emt 0:03:10]} dxe4 {[%emt 0:01:00]} 18. Bxe4 {[%emt 0:00:03]} Qd6 {[%emt 0:02:16]} 19. Bxf5 {[%emt 0:05:33]} Nxf5 {[%emt 0:00:18]} 20. Ne4 {[%emt 0:00:02]} Qd8 {[%emt 0:07:28]} (20... Nxd4 $2 21. Qb2 Nxf3+ 22. gxf3 $18) 21. b5 {[%emt 0:02:33]} Rc8 {[%emt 0:02:27]} 22. bxc6 {[%emt 0:01:51]} bxc6 {[%emt 0:03:47]} 23. Ne5 {[%emt 0:08:27]} Nd5 {[%emt 0:06:38]} 24. Qc5 {[%emt 0:03:37]} Nf4 {[%emt 0:07:42]} ({Black should play} 24... f6 $11 25. Nc4 (25. Nxc6 Qd7 $11) 25... Rc7) 25. Nxc6 {[%emt 0:03:39]} Qh4 {[%emt 0:04:46] This move loses the game for Black.} (25... Qc7 $1 $14 26. Nb4 (26. Nf6+ Kg7 $11) 26... Qxc5 27. dxc5 Nd4) 26. d5 $1 $36 {[%emt 0:15:28][%mdl 2048] Black must now prevent d6. White is really pushing. Active counter play!} Rfe8 {[%emt 0:05:56] [#]} (26... f6 $142 27. Qc3 Qg4) 27. f3 $1 {[%emt 0:07:28]} Nd3 $2 {[%emt 0:14:11] [#]} (27... Ra8 28. g3 Qh3) 28. Qc3 $1 {[%emt 0:00:23]} (28. g3 Nxc5 29. gxh4 Nd7 $16) 28... Nxe1 {[%emt 0:03:24]} 29. Nf6+ {[%emt 0:03:09]} ({Not} 29. Rxe1 Rf8 30. Nf6+ Kh8 31. Nd7+ f6 $18) 29... Kf8 {[%emt 0:01:00]} 30. Nxe8 {[%emt 0:00:16][%cal Rc3h8]} Nxf3+ {[%emt 0:05:05]} 31. gxf3 {[%emt 0:00:16][%cal Rc3h8]} Rxc6 {[%emt 0:00:32]} 32. Qh8+ {[%emt 0:00:49] White mates.} Ke7 {[%emt 0:00:19]} 33. Qe5+ {[%emt 0:02:11]} Kf8 {[%emt 0:00:51]} 34. dxc6 {[%emt 0:00:32]} Qg5+ {[%emt 0:00:09]} 35. Kh1 {[%emt 0:00:17] Weighted Error Value: White=0.04 (flawless) /Black=0.49} 1-0